bitfinex/quotes_ETHUSD_20241103
["timestamp","ask_amount","ask_price","bid_price","bid_amount"]
[1730621175755,8.16003,2451.0,2450.7,1.59495544]
[1730621176107,8.16004,2451.0,2450.7,1.59495544]
[1730621177780,4.08013,2450.9,2450.7,1.59495544]
[1730621178148,4.08013,2450.9,2450.7,0.37294536]
[1730621189663,0.8022,2451.3,2450.7,0.37294536]
[1730621189916,4.08015,2450.9,2450.7,0.37294536]
[1730621196287,4.07997,2451.0,2450.7,0.37294536]
[1730621198209,4.07997,2451.0,2450.8,0.70775923]
[1730621200430,4.07997,2451.0,2450.7,1.22717168]
[1730621200649,4.07997,2451.0,2450.8,0.70806304]
[1730621201335,4.07997,2451.0,2450.9,0.17995522]
[1730621203716,4.07997,2451.0,2450.9,0.17999546]
[1730621206445,4.07997,2451.0,2450.9,0.17999769]
[1730621207243,4.07997,2451.0,2450.8,0.70824494]
[1730621207418,4.07997,2451.0,2450.9,0.17999961]
[1730621207618,4.07997,2451.0,2450.9,0.88829609]
[1730621209445,4.07997,2451.0,2450.9,1.17631975]
[1730621210244,4.07997,2451.0,2450.9,2.23876447]
[1730621211110,4.07997,2451.0,2450.9,2.23922682]
[1730621215954,4.07997,2451.0,2450.9,2.24089765]
[1730621217653,4.07997,2451.0,2450.9,1.77241203]
[1730621217953,4.07997,2451.0,2450.9,2.24093289]
[1730621218541,4.07997,2451.0,2450.9,2.24018215]
[1730621221058,4.07997,2451.0,2450.9,0.70894443]
[1730621221260,4.07997,2451.0,2450.9,0.88887077]
[1730621221423,4.07997,2451.0,2450.9,1.17677725]
[1730621221964,5.653554,2451.0,2450.9,1.17677725]
[1730621222122,5.653554,2451.0,2450.9,0.17992634]
[1730621222123,7.35951181,2451.0,2450.9,0.17992634]
[1730621222322,4.8379,2450.8,2450.7,0.37294536]
[1730621222825,6.54941788,2450.8,2450.7,0.37294536]
[1730621223057,8.43811181,2450.8,2450.7,0.37294536]
[1730621223553,6.72659393,2450.8,2450.7,0.37294536]
[1730621224453,4.8379,2450.8,2450.7,0.37294536]
[1730621225755,4.08016,2450.9,2450.7,0.37294536]
[1730621226161,4.0803,2450.8,2450.7,0.37294536]
[1730621228937,4.9061,2450.8,2450.7,0.37294536]
[1730621229634,6.12811008,2450.8,2450.7,0.37294536]
[1730621229964,7.32008888,2450.8,2450.7,0.37294536]
[1730621236562,10.74558433,2450.8,2450.7,0.37294536]
[1730621237138,12.46710221,2450.8,2450.7,0.37294536]
[1730621237353,12.04160676,2450.8,2450.7,0.37294536]
[1730621237558,12.4605931,2450.8,2450.7,0.37294536]
[1730621238273,12.88669673,2450.8,2450.7,0.37294536]
[1730621238573,12.45981245,2450.8,2450.7,0.37294536]
[1730621238949,20.62061245,2450.8,2450.7,0.37294536]
[1730621239332,7.91643,2450.6,2450.5,0.0605914]
[1730621239537,17.29924008,2450.6,2450.5,0.0605914]
[1730621240084,19.00383574,2450.6,2450.5,0.0605914]
[1730621240378,17.29924008,2450.6,2450.5,0.0605914]
[1730621242656,17.28924008,2450.6,2450.5,0.0605914]
[1730621242966,21.28125605,2450.6,2450.5,0.0605914]
[1730621253114,20.05924597,2450.6,2450.5,0.0605914]
[1730621259583,21.28125605,2450.6,2450.5,0.0605914]
[1730621263654,20.05924597,2450.6,2450.5,0.0605914]
[1730621265613,19.23344597,2450.6,2450.5,0.0605914]
[1730621266842,16.23344597,2450.6,2450.5,0.0605914]
[1730621271573,17.93724728,2450.6,2450.5,0.0605914]
[1730621278518,18.73324728,2450.6,2450.5,0.0605914]
[1730621278808,18.25145605,2450.6,2450.5,0.0605914]
[1730621279410,19.96127366,2450.6,2450.5,0.0605914]
[1730621279615,20.38816094,2450.6,2450.5,0.0605914]
[1730621280379,21.25145605,2450.6,2450.5,0.0605914]
[1730621284244,21.26145605,2450.6,2450.5,0.0605914]
[1730621284844,23.82754016,2450.6,2450.5,0.0605914]
[1730621289241,22.48346613,2450.6,2450.0,0.02]
[1730621289441,0.7541,2449.8,2449.3,0.34846099]
[1730621289653,6.05874008,2449.4,2449.3,0.0605914]
[1730621290248,10.34127372,2449.4,2449.3,0.0605914]
[1730621290542,12.16699774,2449.4,2449.3,0.0605914]
[1730621291559,19.04767654,2449.4,2449.3,0.0605914]
[1730621294675,15.24343,2449.4,2449.3,0.0605914]
[1730621295195,12.24343,2449.4,2449.3,0.0605914]
[1730621295707,12.24343,2449.4,2449.3,0.8479914]
[1730621296794,8.1608,2449.4,2449.3,0.8479914]
[1730621297694,8.1608,2449.4,2449.3,2.07000148]
[1730621298280,8.1608,2449.4,2449.3,6.15279148]
[1730621299361,8.1608,2449.4,2449.3,9.16279148]
[1730621299586,8.1608,2449.4,2449.3,9.34265732]
[1730621302077,4.0817,2450.0,2449.5,4.86978]
[1730621302286,4.0817,2450.0,2449.6,0.7874]
[1730621305609,4.08171,2450.0,2449.6,0.7874]
[1730621306169,4.08171,2450.0,2449.6,4.86968]
[1730621307109,8.16342,2450.0,2449.6,0.7874]
[1730621308201,4.08171,2450.0,2449.6,4.86963]
[1730621308382,4.08132,2450.2,2449.8,0.8191]
[1730621308580,4.08132,2450.2,2449.9,0.8191]
[1730621309709,8.16277,2450.2,2449.9,0.8191]
[1730621309869,4.08163,2450.0,2449.9,0.8191]
[1730621310625,4.08146,2450.1,2449.9,0.8191]
[1730621311622,4.08163,2450.0,2449.9,0.8191]
[1730621311918,4.08146,2450.1,2449.9,0.8191]
[1730621312825,8.16303,2450.1,2449.9,0.8191]
[1730621313007,4.08146,2450.1,2449.9,0.8191]
[1730621314526,4.08131,2450.2,2449.9,0.8191]
[1730621316637,4.08126,2450.3,2449.9,0.8191]
[1730621317531,8.16252,2450.3,2449.9,0.8191]
[1730621319044,4.08097,2450.4,2450.0,0.8302]
[1730621319209,8.16203,2450.4,2450.0,0.8302]
[1730621319405,4.08097,2450.4,2450.0,0.8302]
[1730621319609,4.08114,2450.3,2450.0,0.8302]
[1730621322122,4.08097,2450.4,2450.0,0.8302]
[1730621324222,4.08097,2450.4,2450.0,4.08158]
[1730621324422,4.08097,2450.4,2450.1,0.8302]
[1730621325320,8.16202,2450.4,2450.1,0.8302]
[1730621325613,4.08097,2450.4,2450.1,0.8302]
[1730621326424,4.08122,2450.3,2450.1,0.8302]
[1730621326924,8.16207,2450.4,2450.1,0.8302]
[1730621328044,4.08097,2450.4,2450.1,0.8302]
[1730621328836,8.16209,2450.4,2450.1,0.8302]
[1730621329547,4.08097,2450.4,2450.1,0.8302]
[1730621329747,4.08121,2450.3,2450.1,0.8302]
[1730621335385,8.16248,2450.3,2449.9,0.7715]
[1730621335677,4.08121,2450.3,2449.9,0.7715]
[1730621336441,4.08121,2450.3,2449.9,4.85329]
[1730621337561,4.08121,2450.3,2449.9,0.7715]
[1730621337773,8.16242,2450.3,2449.9,0.7715]
[1730621337947,4.08121,2450.3,2449.9,0.7715]
[1730621338673,8.16245,2450.3,2449.9,0.7715]
[1730621338841,4.08121,2450.3,2449.9,0.7715]
[1730621339172,4.08121,2450.3,2449.9,0.9514725]
[1730621339949,4.08079,2450.5,2449.9,0.9514725]
[1730621340283,0.7601,2450.6,2449.7,0.7715]
[1730621340284,4.0818,2449.9,2449.7,0.7715]
[1730621341349,4.0818,2449.9,2449.6,0.19017609]
[1730621341546,4.0818,2449.9,2449.6,0.89735691]
[1730621341863,4.0818,2449.9,2449.6,1.95812814]
[1730621342179,4.08156,2450.1,2449.7,0.18017609]
[1730621342492,4.08165,2450.0,2449.7,0.18017609]
[1730621342783,4.08165,2450.0,2449.7,1.40218617]
[1730621343347,4.08165,2450.0,2449.8,0.18017609]
[1730621343960,4.08165,2450.0,2449.7,1.22201008]
[1730621344182,4.08165,2450.0,2449.8,0.18030543]
[1730621345387,4.08165,2450.0,2449.9,0.18030543]
[1730621345591,4.08165,2450.0,2449.8,0.18030543]
[1730621345771,4.08165,2450.0,2449.9,0.18030543]
[1730621346086,4.08165,2450.0,2449.8,0.18030543]
[1730621346249,4.08165,2450.0,2449.9,0.18030543]
[1730621346450,4.08165,2450.0,2449.8,0.18030543]
[1730621346678,4.08165,2450.0,2449.9,0.18030543]
[1730621346881,4.08165,2450.0,2449.8,0.18030543]
[1730621347091,4.08165,2450.0,2449.9,0.18030543]
[1730621347287,4.08165,2450.0,2449.8,0.18030543]
[1730621347464,4.08165,2450.0,2449.9,0.18030543]
[1730621347664,4.08179,2449.9,2449.8,0.18030543]
[1730621347883,4.08179,2449.9,2449.8,0.88854048]
[1730621348478,4.08179,2449.9,2449.8,0.18030543]
[1730621348779,4.08179,2449.9,2449.8,0.88856731]
[1730621350609,4.08179,2449.9,2449.8,0.18030543]
[1730621351555,4.08179,2449.9,2449.8,0.88857007]
[1730621352076,4.08179,2449.9,2449.8,0.18042418]
[1730621352373,4.08179,2449.9,2449.5,3.90927059]
[1730621352578,4.08179,2449.9,2449.6,0.88866695]
[1730621352787,4.08179,2449.9,2449.7,0.18043231]
[1730621353009,4.08179,2449.9,2449.8,0.18043231]
[1730621353200,4.08179,2449.9,2449.6,0.18043231]
[1730621353528,4.08179,2449.9,2449.5,3.90927059]
[1730621353529,4.08179,2449.9,2449.7,0.18043231]
[1730621353672,4.08179,2449.9,2449.8,0.18043231]
[1730621353875,4.08179,2449.9,2449.6,0.18043231]
[1730621354120,4.08179,2449.9,2449.5,3.0559298]
[1730621354121,4.08204,2449.8,2449.7,0.18043231]
[1730621354408,4.08204,2449.8,2449.6,0.18043231]
[1730621354714,4.08204,2449.8,2449.7,0.18043231]
[1730621354918,4.08204,2449.8,2449.6,0.18043231]
[1730621355216,4.08204,2449.8,2449.7,0.18043231]
[1730621355440,4.08204,2449.8,2449.6,0.18043231]
[1730621355598,4.08204,2449.8,2449.7,0.18043231]
[1730621355800,4.08204,2449.8,2449.6,0.18043231]
[1730621355988,4.08204,2449.8,2449.7,0.18043231]
[1730621356195,4.08204,2449.8,2449.6,0.18043231]
[1730621356426,4.08204,2449.8,2449.7,0.18043231]
[1730621356618,4.08204,2449.8,2449.6,0.18043231]
[1730621357702,4.08179,2449.9,2449.6,0.18043231]
[1730621357703,4.08213,2449.7,2449.6,0.18043231]
[1730621358403,4.08198,2449.8,2449.5,2.17394239]
[1730621358598,4.08198,2449.8,2449.6,0.18043231]
[1730621359317,4.08198,2449.8,2449.5,2.17394239]
[1730621359827,4.08198,2449.8,2449.5,2.17384889]
[1730621360538,4.08214,2449.7,2449.5,2.17384889]
[1730621361591,4.08214,2449.7,2449.5,1.99351008]
[1730621361786,4.08214,2449.7,2449.5,2.17384889]
[1730621362225,4.08184,2449.9,2449.5,2.17384889]
[1730621362226,4.08198,2449.8,2449.5,2.17384889]
[1730621362430,4.08198,2449.8,2449.5,1.99351008]
[1730621364593,4.08198,2449.8,2449.5,2.17378047]
[1730621366109,4.08198,2449.8,2449.5,1.99351008]
[1730621368340,4.08198,2449.8,2449.5,0.7715]
[1730621370100,4.08198,2449.8,2449.5,0.95177039]
[1730621370898,4.08198,2449.8,2449.5,0.7715]
[1730621371727,4.08246,2449.5,2449.4,0.18024424]
[1730621371902,4.08229,2449.6,2449.3,1.12189064]
[1730621372833,8.16467,2449.6,2449.3,1.12189064]
[1730621373038,4.0825,2449.5,2449.3,1.12189064]
[1730621373340,4.08229,2449.6,2449.3,1.12189064]
[1730621373505,0.489549,2449.5,2449.3,1.12189064]
[1730621373924,4.08229,2449.6,2449.3,2.34390072]
[1730621374726,4.08229,2449.6,2449.3,1.28260148]
[1730621375942,8.16467,2449.6,2449.3,1.28260148]
[1730621376833,4.08229,2449.6,2449.3,1.28260148]
[1730621377946,4.08222,2449.7,2449.4,0.8148]
[1730621378105,4.08238,2449.6,2449.4,0.8148]
[1730621379241,4.08238,2449.6,2449.4,0.99504424]
[1730621380310,4.08238,2449.6,2449.4,0.99506422]
[1730621381358,4.08238,2449.6,2449.4,0.8148]
[1730621382053,4.08238,2449.6,2449.4,0.99508617]
[1730621382348,4.08238,2449.6,2449.5,0.18028617]
[1730621383238,4.08246,2449.5,2449.4,0.18035463]
[1730621383441,4.9880112,2449.6,2449.3,1.28260148]
[1730621383645,4.08238,2449.6,2449.4,0.18034571]
[1730621383938,4.08246,2449.5,2449.4,0.18034571]
[1730621386946,4.08263,2449.4,2449.3,0.0605914]
[1730621387156,5.388697,2449.4,2449.3,0.0605914]
[1730621398538,4.08263,2449.4,2449.3,0.0605914]
[1730621400167,4.08246,2449.5,2449.3,0.0605914]
[1730621400375,4.08246,2449.5,2449.3,1.28260148]
[1730621401344,4.08246,2449.5,2449.3,1.46290364]
[1730621401535,4.08246,2449.5,2449.3,1.28260148]
[1730621401735,4.08246,2449.5,2449.3,1.46290364]
[1730621401962,4.08246,2449.5,2449.3,1.28260148]
[1730621402172,4.08246,2449.5,2449.3,1.46290364]
[1730621402351,4.08198,2449.8,2449.4,0.95010216]
[1730621402534,4.08217,2449.7,2449.6,1.22201008]
[1730621403178,4.08217,2449.7,2449.5,0.18030216]
[1730621404377,4.08238,2449.6,2449.4,1.99181008]
[1730621404674,4.08238,2449.6,2449.4,2.1721254]
[1730621404877,4.84668,2449.6,2449.5,0.18031532]
[1730621405444,0.7643,2449.6,2449.5,0.18031532]
[1730621406448,4.84659,2449.6,2449.4,1.4023254]
[1730621406888,4.08263,2449.4,2449.3,1.12037658]
[1730621407188,4.84693,2449.4,2449.3,0.0587982]
[1730621408591,4.08263,2449.4,2449.3,0.0587982]
[1730621409089,4.08263,2449.4,2449.3,0.23915652]
[1730621410182,4.08246,2449.5,2449.3,0.23915652]
[1730621410183,8.16504,2449.5,2449.3,0.23915652]
[1730621410396,4.08246,2449.5,2449.4,1.4023684]
[1730621410601,4.08246,2449.5,2449.4,0.18035832]
[1730621418514,4.87983187,2449.5,2449.4,0.18035832]
[1730621418672,5.64663187,2449.5,2449.4,0.18035832]
[1730621419009,4.08263,2449.4,2449.3,0.0587982]
[1730621419206,4.08263,2449.4,2449.3,0.94732686]
[1730621420881,4.08263,2449.4,2449.3,0.94736586]
[1730621421773,4.08263,2449.4,2449.3,0.23919101]
[1730621422400,4.08263,2449.4,2449.3,0.0587982]
[1730621422602,4.08263,2449.4,2449.3,0.23915865]
[1730621426181,4.08263,2449.4,2449.3,0.23918716]
[1730621429687,4.08263,2449.4,2449.3,0.0587982]
[1730621430017,4.08263,2449.4,2449.3,0.23920546]
[1730621430219,4.08263,2449.4,2449.3,0.0587982]
[1730621430424,4.08263,2449.4,2449.3,0.23920682]
[1730621431399,4.08263,2449.4,2449.3,0.94761892]
[1730621432018,4.08263,2449.4,2449.3,0.23920682]
[1730621433499,4.08263,2449.4,2449.3,0.23921832]
[1730621437510,4.08246,2449.5,2449.3,0.23921832]
[1730621437710,4.08246,2449.5,2449.4,1.4024302]
[1730621438437,4.08246,2449.5,2449.4,0.18042012]
[1730621440949,4.977049,2449.5,2449.4,0.18042012]
[1730621441449,4.86373,2449.4,2449.3,0.0587982]
[1730621441739,4.86373,2449.4,2449.3,0.23929739]
[1730621442717,4.86373,2449.4,2449.3,0.0587982]
[1730621443244,4.86373,2449.4,2449.3,0.23930227]
[1730621444553,4.86373,2449.4,2449.3,0.41981522]
[1730621445754,4.86373,2449.4,2449.3,0.23930227]
[1730621447651,6.2560409,2449.4,2449.3,0.23930227]
[1730621449927,6.2560409,2449.4,2449.3,0.0587982]
[1730621451818,9.2560409,2449.4,2449.3,0.0587982]
[1730621457361,6.2560409,2449.4,2449.3,0.0587982]
[1730621458019,4.86373,2449.4,2449.3,0.0587982]
[1730621458358,4.08263,2449.4,2449.3,0.0587982]
[1730621460059,4.08263,2449.4,2449.3,0.23925743]
[1730621460362,4.08263,2449.4,2449.3,0.0587982]
[1730621460868,4.08263,2449.4,2449.3,0.23919942]
[1730621461256,4.08263,2449.4,2449.3,0.0587982]
[1730621462280,4.08263,2449.4,2449.3,0.2392098]
[1730621462484,4.08263,2449.4,2449.3,0.0587982]
[1730621463135,4.08263,2449.4,2449.3,0.2392147]
[1730621464663,4.08263,2449.4,2449.3,0.0587982]
[1730621465066,4.08263,2449.4,2449.3,0.2392147]
[1730621465375,4.08263,2449.4,2449.3,0.0587982]
[1730621465876,4.08263,2449.4,2449.3,0.2392147]
[1730621466175,4.08263,2449.4,2449.3,0.0587982]
[1730621466688,4.08263,2449.4,2449.3,0.2392147]
[1730621466873,4.08263,2449.4,2449.3,0.0587982]
[1730621467271,4.08263,2449.4,2449.3,0.2392147]
[1730621467457,4.08263,2449.4,2449.3,0.0587982]
[1730621470655,4.08263,2449.4,2449.3,0.23925623]
[1730621470876,4.08263,2449.4,2449.3,0.0587982]
[1730621471277,4.08263,2449.4,2449.3,0.23925623]
[1730621471579,4.08263,2449.4,2449.3,0.0587982]
[1730621471951,4.08263,2449.4,2449.3,0.23925623]
[1730621472152,4.08263,2449.4,2449.3,0.0587982]
[1730621472686,4.08263,2449.4,2449.3,0.23925623]
[1730621472893,4.08263,2449.4,2449.3,0.0587982]
[1730621473587,4.08263,2449.4,2449.3,0.23925761]
[1730621473789,4.08263,2449.4,2449.3,0.0587982]
[1730621474274,4.08263,2449.4,2449.3,0.23925761]
[1730621474452,4.08263,2449.4,2449.3,0.0587982]
[1730621474988,4.08263,2449.4,2449.3,0.23925761]
[1730621475150,4.08263,2449.4,2449.3,0.0587982]
[1730621475653,4.08263,2449.4,2449.3,0.23925761]
[1730621475988,4.08263,2449.4,2449.3,0.0587982]
[1730621476352,4.08263,2449.4,2449.3,0.23925761]
[1730621476553,4.08263,2449.4,2449.3,0.0587982]
[1730621476976,4.08263,2449.4,2449.3,0.23925761]
[1730621477178,4.08263,2449.4,2449.3,0.0587982]
[1730621477675,4.08263,2449.4,2449.3,0.23925761]
[1730621477880,4.08263,2449.4,2449.3,0.0587982]
[1730621478392,4.08263,2449.4,2449.3,0.23925761]
[1730621478596,4.08263,2449.4,2449.3,0.0587982]
[1730621478978,4.08263,2449.4,2449.3,0.23925761]
[1730621479164,4.08263,2449.4,2449.3,0.0587982]
[1730621479567,4.08263,2449.4,2449.3,0.23925761]
[1730621479783,4.08263,2449.4,2449.3,0.0587982]
[1730621481065,4.08263,2449.4,2449.3,0.23928877]
[1730621481265,4.08263,2449.4,2449.3,0.0587982]
[1730621481795,4.08263,2449.4,2449.3,0.23928877]
[1730621481970,4.08263,2449.4,2449.3,0.0587982]
[1730621482588,4.08263,2449.4,2449.3,0.23928877]
[1730621483155,5.10921347,2449.4,2449.3,0.23928877]
[1730621483359,5.10921347,2449.4,2449.3,0.0587982]
[1730621483599,5.10921347,2449.4,2449.3,0.23928877]
[1730621483973,4.08263,2449.4,2449.3,0.23928877]
[1730621485806,4.08248,2449.5,2449.4,0.7761]
[1730621486108,4.08248,2449.5,2449.4,2.17860065]
[1730621486288,8.16468,2449.6,2449.4,2.17860065]
[1730621486493,8.16468,2449.6,2449.5,0.18049057]
[1730621487389,4.08215,2449.7,2449.5,0.18049057]
[1730621487575,4.08215,2449.7,2449.6,2.17860065]
[1730621489791,4.08205,2449.8,2449.6,2.17860065]
[1730621490103,8.16411,2449.8,2449.7,0.18049057]
[1730621490522,4.08205,2449.8,2449.7,0.18049057]
[1730621492288,4.08205,2449.8,2449.6,1.99811008]
[1730621492532,4.08205,2449.8,2449.6,2.17860065]
[1730621492687,4.08205,2449.8,2449.6,1.99811008]
[1730621492889,4.08213,2449.7,2449.6,2.17860065]
[1730621493186,4.08213,2449.7,2449.6,1.99811008]
[1730621493383,4.08213,2449.7,2449.6,2.17860065]
[1730621493611,4.08213,2449.7,2449.6,1.99811008]
[1730621493810,4.08213,2449.7,2449.6,2.17860065]
[1730621494037,4.08205,2449.8,2449.6,1.99811008]
[1730621494253,4.08205,2449.8,2449.6,2.17860065]
[1730621494384,4.08205,2449.8,2449.6,1.99811008]
[1730621495008,4.08205,2449.8,2449.6,2.17843244]
[1730621495196,8.16412,2449.8,2449.6,1.99811008]
[1730621495600,4.08205,2449.8,2449.6,1.99811008]
[1730621496702,4.08213,2449.7,2449.6,1.99811008]
[1730621497038,4.08213,2449.7,2449.6,0.7761]
[1730621499228,4.08246,2449.5,2449.3,0.23912056]
[1730621499637,8.16503,2449.5,2449.3,0.23912056]
[1730621499918,4.08263,2449.4,2449.3,0.23912056]
[1730621500338,4.08246,2449.5,2449.3,0.23912056]
[1730621500840,4.08263,2449.4,2449.3,0.23912056]
[1730621501547,4.08263,2449.4,2449.3,0.94698271]
[1730621504449,4.08263,2449.4,2449.3,0.94698939]
[1730621504747,4.08263,2449.4,2449.3,0.94709527]
[1730621504924,4.08263,2449.4,2449.3,0.94709525]
[1730621506361,4.08263,2449.4,2449.3,0.76676623]
[1730621506521,4.08263,2449.4,2449.3,0.9470954]
[1730621506854,4.08263,2449.4,2449.3,0.23912737]
[1730621509284,4.08263,2449.4,2449.3,0.0587982]
[1730621510060,4.978529,2449.4,2449.3,0.0587982]
[1730621512234,4.08263,2449.4,2449.3,0.0587982]
[1730621515274,4.08263,2449.4,2449.3,0.23913924]
[1730621515465,4.90003,2449.4,2449.3,0.23913924]
[1730621515653,7.90003,2449.4,2449.3,0.0587982]
[1730621522647,7.91003,2449.4,2449.3,0.0587982]
[1730621522856,9.35963448,2449.4,2449.3,0.0587982]
[1730621527780,10.58164456,2449.4,2449.3,0.0587982]
[1730621527965,12.71517171,2449.4,2449.3,0.0587982]
[1730621528550,11.00644544,2449.4,2449.3,0.0587982]
[1730621528859,12.29037083,2449.4,2449.3,0.0587982]
[1730621529044,11.0064403,2449.4,2449.3,0.0587982]
[1730621529249,12.28544454,2449.4,2449.3,0.0587982]
[1730621529467,12.28536143,2449.4,2449.3,0.0587982]
[1730621533488,11.0064403,2449.4,2449.3,0.0587982]
[1730621533698,12.28536143,2449.4,2449.3,0.0587982]
[1730621533867,9.11284008,2448.5,2448.4,0.07093522]
[1730621534067,7.87083,2448.5,2448.4,0.07093522]
[1730621534375,7.88083,2448.5,2448.4,0.07093522]
[1730621538189,4.08413,2448.5,2448.4,0.07093522]
[1730621538481,4.08446,2448.3,2448.2,0.1495]
[1730621539202,4.08463,2448.2,2448.1,0.03188902]
[1730621541501,6.096671,2448.2,2448.1,0.03188902]
[1730621542602,6.52137975,2448.2,2448.1,0.03188902]
[1730621542778,6.52137975,2448.2,2447.9,0.42604103]
[1730621542779,7.90116,2448.0,2447.9,0.41828914]
[1730621542982,4.08662,2447.1,2446.8,0.2104538]
[1730621544692,8.17251,2447.3,2446.8,0.0609538]
[1730621544897,4.08632,2447.2,2446.9,0.1495]
[1730621545068,4.08651,2447.1,2446.9,0.1495]
[1730621545806,4.08632,2447.2,2446.9,0.1495]
[1730621546500,0.8062,2447.7,2446.9,0.1495]
[1730621546706,4.08615,2447.3,2446.9,0.1495]
[1730621547768,4.08615,2447.3,2446.9,0.23122605]
[1730621547968,4.08615,2447.3,2447.0,0.1495]
[1730621549570,8.1724,2447.3,2447.0,0.1495]
[1730621550001,4.08587,2447.5,2447.0,0.1495]
[1730621550202,4.08587,2447.5,2447.0,4.23602]
[1730621550700,4.08587,2447.5,2447.1,0.1495]
[1730621550871,4.08557,2447.7,2447.2,0.1495]
[1730621551078,4.08571,2447.6,2447.2,0.1495]
[1730621551977,0.8062,2448.1,2447.4,4.08595]
[1730621551978,4.08521,2447.9,2447.4,4.08595]
[1730621552316,4.08489,2448.1,2447.6,4.08548]
[1730621552317,4.0848,2448.1,2447.6,4.08548]
[1730621552612,4.08475,2448.2,2447.7,4.23495]
[1730621552784,4.08403,2448.6,2448.1,4.23421]
[1730621552991,4.08403,2448.6,2448.1,0.1495]
[1730621552992,4.08415,2448.5,2448.1,0.1495]
[1730621553293,4.88951,2449.0,2448.1,0.1495]
[1730621553294,4.08382,2448.7,2448.2,4.08462]
[1730621553477,4.08382,2448.7,2448.3,0.1495]
[1730621554502,8.16773,2448.7,2448.3,0.2311801]
[1730621554700,4.08382,2448.7,2448.3,0.2311801]
[1730621555215,4.08374,2448.8,2448.3,0.2311801]
[1730621555420,4.08374,2448.8,2448.3,0.1495]
[1730621555713,4.08374,2448.8,2448.3,4.23395]
[1730621555913,4.08306,2449.2,2448.5,2.88597623]
[1730621556114,4.08274,2449.4,2448.9,0.1495]
[1730621556313,4.08274,2449.4,2448.9,0.23115934]
[1730621556788,4.08281,2449.3,2448.9,0.23115934]
[1730621558710,4.08239,2449.6,2449.0,4.08328]
[1730621559012,4.08239,2449.6,2449.1,0.1495]
[1730621559214,4.08216,2449.7,2449.2,4.16461236]
[1730621559712,4.08231,2449.6,2449.2,0.08165236]
[1730621559895,4.08231,2449.6,2449.1,4.2325]
[1730621560816,4.08216,2449.7,2449.1,8.31549]
[1730621560976,4.08216,2449.7,2449.2,0.08164709]
[1730621561176,4.08216,2449.7,2449.2,4.16451709]
[1730621561424,4.08216,2449.7,2449.3,4.08278]
[1730621561714,4.08216,2449.7,2449.2,0.08164709]
[1730621561715,4.08165,2450.0,2449.4,0.1495]
[1730621561887,4.08165,2450.0,2449.5,4.08238]
[1730621562080,4.08165,2450.0,2449.6,0.08163715]
[1730621562474,4.08151,2450.1,2449.6,0.08163715]
[1730621562707,4.08151,2450.1,2449.7,0.1495]
[1730621562882,5.90775846,2450.3,2449.7,0.1495]
[1730621563087,4.08123,2450.3,2449.8,0.0816315]
[1730621563284,8.16251,2450.3,2449.8,0.0816315]
[1730621563485,4.08123,2450.3,2449.8,0.0816315]
[1730621564212,4.08123,2450.3,2449.8,4.1635515]
[1730621564891,4.08123,2450.3,2449.8,0.0816315]
[1730621565110,4.08123,2450.3,2449.9,4.08178]
[1730621565782,4.08056,2450.7,2450.3,0.1495]
[1730621565977,8.16118,2450.7,2450.3,0.1495]
[1730621566212,4.08065,2450.6,2450.3,0.1495]
[1730621566520,4.08123,2450.3,2449.8,0.1495]
[1730621566680,4.08156,2450.1,2449.8,0.1495]
[1730621567520,4.08165,2450.0,2449.8,0.1495]
[1730621568125,4.08163,2450.0,2449.8,0.1495]
[1730621568283,4.08163,2450.0,2449.6,0.1495]
[1730621568597,4.08205,2449.8,2449.4,0.1495]
[1730621568796,4.08181,2449.9,2449.4,0.1495]
[1730621568797,4.08213,2449.7,2449.4,0.1495]
[1730621569125,8.16435,2449.7,2449.4,0.1495]
[1730621569413,4.08197,2449.8,2449.4,0.1495]
[1730621569620,4.08192,2449.9,2449.4,7.05022883]
[1730621569981,4.08157,2450.1,2449.5,4.08235]
[1730621570213,4.08125,2450.3,2449.7,4.08201]
[1730621570526,4.08125,2450.3,2449.8,0.1495]
[1730621570527,4.569985,2450.3,2449.8,0.1495]
[1730621570705,8.16306,2450.1,2449.8,0.1495]
[1730621570909,8.16311,2450.1,2449.8,0.1495]
[1730621571207,4.08165,2450.0,2449.6,0.1495]
[1730621572723,4.08149,2450.1,2449.6,4.23177]
[1730621572883,4.9466385,2450.1,2449.7,0.08163341]
[1730621573499,4.08167,2450.0,2449.6,0.1495]
[1730621573908,4.08192,2449.9,2449.6,0.1495]
[1730621577914,4.08198,2449.8,2449.3,4.23219]
[1730621578238,0.408198,2449.7,2449.4,4.08261]
[1730621578438,4.0818,2449.9,2449.4,4.08261]
[1730621579316,4.08179,2449.9,2449.3,4.23219]
[1730621579536,4.08197,2449.8,2449.3,8.3149]
[1730621579736,4.08197,2449.8,2449.3,4.23219]
[1730621580048,4.898334,2449.8,2449.3,8.3149]
[1730621580247,0.816364,2449.8,2449.4,4.08261]
[1730621580546,4.08167,2450.0,2449.4,4.08261]
[1730621580748,4.08167,2450.0,2449.6,4.08229]
[1730621581335,4.08167,2450.0,2449.5,4.16410111]
[1730621582109,4.08185,2449.9,2449.4,4.08261]
[1730621582344,4.08185,2449.9,2449.4,4.16425115]
[1730621582548,4.898202,2449.9,2449.4,4.08261]
[1730621582749,4.898202,2449.9,2449.5,4.08242]
[1730621582911,8.980142,2449.9,2449.4,4.08254]
[1730621583111,4.898202,2449.9,2449.4,8.16508]
[1730621583348,4.898202,2449.9,2449.4,4.08254]
[1730621584115,4.898202,2449.9,2449.5,0.0816412]
[1730621584526,4.898202,2449.9,2449.4,4.08252]
[1730621584737,4.898202,2449.9,2449.5,0.08164113]
[1730621584932,4.898202,2449.9,2449.4,4.08252]
[1730621585135,4.898202,2449.9,2449.4,4.0826]
[1730621587453,8.980112,2449.9,2449.4,4.0826]
[1730621587760,0.8980112,2449.8,2449.4,4.0826]
[1730621590057,4.9799912,2449.8,2449.4,4.0826]
[1730621591313,0.8980112,2449.8,2449.5,4.08241]
[1730621591519,0.8980112,2449.8,2449.5,4.16405133]
[1730621591930,4.9799812,2449.8,2449.4,4.0826]
[1730621595532,0.49799812,2449.7,2449.3,0.1495]
[1730621595866,0.49799812,2449.7,2449.3,4.23218]
[1730621596043,0.49799812,2449.7,2449.4,4.08261]